[Event "*** Titled Tuesday Blitz"]
[Site "Chess.com"]
[Date "2020.04.28"]
[Round "8"]
[White "EddieMarsalla"]
[Black "WelshTiger"]
[Result "1/2-1/2"]
[WhiteElo "2515"]
[BlackElo "2351"]
[TimeControl "180+1"]
[EndTime "11:38:01 PDT"]
[Termination "Game drawn by repetition"]

1. d4 {[%clk 0:03:00.9]} 1... Nf6 {[%clk 0:02:59.2]} 2. Bg5 {[%clk 0:03:01.3]}
2... e6 {[%clk 0:02:54.7]} 3. Nd2 {[%clk 0:03:01.3]} 3... Be7 {[%clk 0:02:53]}
4. c3 {[%clk 0:03:01]} 4... c5 {[%clk 0:02:51.7]} 5. e3 {[%clk 0:03:00.8]} 5...
b6 {[%clk 0:02:51.6]} 6. f4 {[%clk 0:03:00]} 6... h6 {[%clk 0:02:49.7]} 7. Bh4
{[%clk 0:02:59.8]} 7... Bb7 {[%clk 0:02:50]} 8. Ngf3 {[%clk 0:02:59.6]} 8... d6
{[%clk 0:02:47.8]} 9. Bc4 {[%clk 0:02:58.3]} 9... Nbd7 {[%clk 0:02:47.4]} 10.
Qe2 {[%clk 0:02:58.3]} 10... Ne4 {[%clk 0:02:47.2]} 11. Bg3 {[%clk 0:02:57.7]}
11... Ndf6 {[%clk 0:02:40.1]} 12. O-O {[%clk 0:02:55.7]} 12... O-O {[%clk
0:02:39]} 13. Rae1 {[%clk 0:02:46.6]} 13... a6 {[%clk 0:02:38.1]} 14. Bd3 {[%clk
0:02:46]} 14... Nxd2 {[%clk 0:02:20.7]} 15. Nxd2 {[%clk 0:02:30.6]} 15... d5
{[%clk 0:02:20.8]} 16. f5 {[%clk 0:02:30.1]} 16... exf5 {[%clk 0:02:15.7]} 17.
Rxf5 {[%clk 0:02:27.4]} 17... Ne4 {[%clk 0:02:12.4]} 18. Nxe4 {[%clk 0:02:25]}
18... dxe4 {[%clk 0:02:12.4]} 19. Bc4 {[%clk 0:02:25.2]} 19... b5 {[%clk
0:02:11.6]} 20. Bb3 {[%clk 0:02:21.8]} 20... c4 {[%clk 0:02:01]} 21. Bc2 {[%clk
0:02:21.4]} 21... Bd6 {[%clk 0:02:01.3]} 22. Ref1 {[%clk 0:02:15.6]} 22... Bxg3
{[%clk 0:01:59.6]} 23. hxg3 {[%clk 0:02:16.5]} 23... f6 {[%clk 0:01:59.7]} 24.
Qg4 {[%clk 0:02:13.6]} 24... Qe7 {[%clk 0:01:57.2]} 25. R1f4 {[%clk 0:01:56.4]}
25... Rae8 {[%clk 0:01:56.7]} 26. d5 {[%clk 0:01:54.9]} 26... Bc8 {[%clk
0:01:54.1]} 27. Rxe4 {[%clk 0:01:54.8]} 27... Qc5 {[%clk 0:01:41.8]} 28. Qf3
{[%clk 0:00:57.9]} 28... Bxf5 {[%clk 0:01:24.2]} 29. Qxf5 {[%clk 0:00:57]} 29...
Rxe4 {[%clk 0:01:22.3]} 30. Bxe4 {[%clk 0:00:56.7]} 30... Qxe3+ {[%clk
0:01:14.3]} 31. Kh2 {[%clk 0:00:52.8]} 31... Qg5 {[%clk 0:01:09.2]} 32. Qe6+
{[%clk 0:00:52.8]} 32... Kh8 {[%clk 0:01:09.3]} 33. d6 {[%clk 0:00:36.1]} 33...
f5 {[%clk 0:01:09.1]} 34. Bf3 {[%clk 0:00:28.8]} 34... f4 {[%clk 0:01:09]} 35.
gxf4 {[%clk 0:00:21]} 35... Qxf4+ {[%clk 0:01:08.8]} 36. Kg1 {[%clk 0:00:21]}
36... Qf6 {[%clk 0:01:03.7]} 37. Qd5 {[%clk 0:00:18.7]} 37... Rd8 {[%clk
0:00:46.9]} 38. d7 {[%clk 0:00:18.6]} 38... Qe7 {[%clk 0:00:45.2]} 39. Bg4
{[%clk 0:00:18.8]} 39... g6 {[%clk 0:00:44.2]} 40. Bh3 {[%clk 0:00:15.4]} 40...
h5 {[%clk 0:00:40.8]} 41. Qd4+ {[%clk 0:00:15.4]} 41... Kh7 {[%clk 0:00:40.8]}
42. Qb6 {[%clk 0:00:15.7]} 42... Rxd7 {[%clk 0:00:30.1]} 43. Bxd7 {[%clk
0:00:16.6]} 43... Qxd7 {[%clk 0:00:30.3]} 44. Qxa6 {[%clk 0:00:17.3]} 44... h4
{[%clk 0:00:29.9]} 45. Kh2 {[%clk 0:00:15.6]} 45... g5 {[%clk 0:00:29.4]} 46.
Qb6 {[%clk 0:00:14.9]} 46... g4 {[%clk 0:00:28.2]} 47. Qc5 {[%clk 0:00:11]}
47... g3+ {[%clk 0:00:24]} 48. Kh1 {[%clk 0:00:11.5]} 48... Qd1+ {[%clk
0:00:23.8]} 49. Qg1 {[%clk 0:00:12.1]} 49... Qc2 {[%clk 0:00:22.8]} 50. Qa1
{[%clk 0:00:10.9]} 50... Kh6 {[%clk 0:00:21.6]} 51. b3 {[%clk 0:00:11.2]} 51...
cxb3 {[%clk 0:00:20.8]} 52. axb3 {[%clk 0:00:12.1]} 52... Qxb3 {[%clk
0:00:21.2]} 53. Qc1+ {[%clk 0:00:12.7]} 53... Kg6 {[%clk 0:00:18.6]} 54. Qe1
{[%clk 0:00:13.6]} 54... Qc2 {[%clk 0:00:17.9]} 55. Qe6+ {[%clk 0:00:13.5]}
55... Kg5 {[%clk 0:00:18]} 56. Qg8+ {[%clk 0:00:13.6]} 56... Kf4 {[%clk
0:00:17.8]} 57. Qf7+ {[%clk 0:00:13.5]} 57... Ke3 {[%clk 0:00:18.2]} 58. Qe7+
{[%clk 0:00:13.9]} 58... Kd2 {[%clk 0:00:18.4]} 59. Qd6+ {[%clk 0:00:12.7]}
59... Kxc3 {[%clk 0:00:18.7]} 60. Qc5+ {[%clk 0:00:12.7]} 60... Kd2 {[%clk
0:00:19]} 61. Qd4+ {[%clk 0:00:12.8]} 61... Kc1 {[%clk 0:00:19.4]} 62. Qf4+
{[%clk 0:00:10.5]} 62... Kb1 {[%clk 0:00:17.4]} 63. Qb4+ {[%clk 0:00:10]} 63...
Qb2 {[%clk 0:00:17.9]} 64. Qe4+ {[%clk 0:00:09.8]} 64... Ka2 {[%clk 0:00:17.5]}
65. Qa8+ {[%clk 0:00:10.1]} 65... Kb3 {[%clk 0:00:17.2]} 66. Qg8+ {[%clk
0:00:10]} 66... Kb4 {[%clk 0:00:17.4]} 67. Qf8+ {[%clk 0:00:10]} 67... Ka4
{[%clk 0:00:15.7]} 68. Qa8+ {[%clk 0:00:10.2]} 68... Kb3 {[%clk 0:00:15.4]} 69.
Qg8+ {[%clk 0:00:10.2]} 69... Kc2 {[%clk 0:00:14.8]} 70. Qh7+ {[%clk 0:00:08.5]}
70... Kc1 {[%clk 0:00:14]} 71. Qxh4 {[%clk 0:00:08.4]} 71... Qf2 {[%clk
0:00:12]} 72. Qg5+ {[%clk 0:00:07.5]} 72... Kb2 {[%clk 0:00:10.2]} 73. Qxb5+
{[%clk 0:00:06.7]} 73... Kc3 {[%clk 0:00:09.8]} 74. Qa5+ {[%clk 0:00:06.2]}
74... Kd3 {[%clk 0:00:09.9]} 75. Qa1 {[%clk 0:00:06.5]} 75... Qf4 {[%clk
0:00:08.5]} 76. Qd1+ {[%clk 0:00:06.1]} 76... Kc3 {[%clk 0:00:07.4]} 77. Qa1+
{[%clk 0:00:05.4]} 77... Kc2 {[%clk 0:00:07.5]} 78. Qa2+ {[%clk 0:00:05.1]}
78... Kc3 {[%clk 0:00:07.3]} 79. Qa3+ {[%clk 0:00:05.4]} 79... Kd2 {[%clk
0:00:07.4]} 80. Qb2+ {[%clk 0:00:05.3]} 80... Ke1 {[%clk 0:00:07.8]} 81. Qc3+
{[%clk 0:00:04.6]} 81... Ke2 {[%clk 0:00:08]} 82. Qc2+ {[%clk 0:00:04.7]} 82...
Kf1 {[%clk 0:00:08.4]} 83. Qd1+ {[%clk 0:00:04.2]} 83... Kf2 {[%clk 0:00:08.9]}
84. Qc2+ {[%clk 0:00:04.4]} 84... Ke1 {[%clk 0:00:09.4]} 85. Qc3+ {[%clk
0:00:02.8]} 85... Kd1 {[%clk 0:00:09.9]} 86. Qd3+ {[%clk 0:00:02.9]} 86... Kc1
{[%clk 0:00:10.5]} 87. Qc3+ {[%clk 0:00:03.1]} 87... Kb1 {[%clk 0:00:10.7]} 88.
Qb3+ {[%clk 0:00:03.6]} 88... Kc1 {[%clk 0:00:11.1]} 89. Qc3+ {[%clk 0:00:04.2]}
89... Kd1 {[%clk 0:00:11.6]} 90. Qd3+ {[%clk 0:00:04.8]} 90... Ke1 {[%clk
0:00:12]} 91. Qc3+ {[%clk 0:00:05.1]} 1/2-1/2

[Event "*** Titled Tuesday Blitz"]
[Site "Chess.com"]
[Date "2020.04.28"]
[Round "9"]
[White "MateSchmate"]
[Black "fidezivkovic"]
[Result "0-1"]
[WhiteElo "2458"]
[BlackElo "2326"]
[TimeControl "180+1"]
[EndTime "11:41:52 PDT"]
[Termination "fidezivkovic won by checkmate"]

1. e4 {[%clk 0:03:00.9]} 1... c5 {[%clk 0:02:59.4]} 2. Be2 {[%clk 0:03:00.6]}
2... Nc6 {[%clk 0:02:58]} 3. f4 {[%clk 0:03:01.1]} 3... g6 {[%clk 0:02:56]} 4.
c3 {[%clk 0:03:01.2]} 4... d5 {[%clk 0:02:53.6]} 5. d3 {[%clk 0:03:01.5]} 5...
Bg7 {[%clk 0:02:50.3]} 6. Nf3 {[%clk 0:02:59.6]} 6... e6 {[%clk 0:02:49.3]} 7.
O-O {[%clk 0:02:57.7]} 7... Nge7 {[%clk 0:02:48.4]} 8. Na3 {[%clk 0:02:56.2]}
8... O-O {[%clk 0:02:46.9]} 9. e5 {[%clk 0:02:55.1]} 9... d4 {[%clk 0:02:44.9]}
10. c4 {[%clk 0:02:55.3]} 10... b6 {[%clk 0:02:43.3]} 11. Nc2 {[%clk 0:02:55.1]}
11... Bb7 {[%clk 0:02:42]} 12. Qe1 {[%clk 0:02:55.2]} 12... a5 {[%clk
0:02:34.5]} 13. a4 {[%clk 0:02:53.8]} 13... Qd7 {[%clk 0:02:30.9]} 14. g4 {[%clk
0:02:51.1]} 14... Nb4 {[%clk 0:02:28.7]} 15. Nxb4 {[%clk 0:02:50.8]} 15... axb4
{[%clk 0:02:27.9]} 16. b3 {[%clk 0:02:51.3]} 16... f6 {[%clk 0:02:22.3]} 17.
exf6 {[%clk 0:02:50.9]} 17... Bxf6 {[%clk 0:02:20.8]} 18. Ne5 {[%clk 0:02:51.4]}
18... Bxe5 {[%clk 0:02:15.8]} 19. fxe5 {[%clk 0:02:52.3]} 19... Qc6 {[%clk
0:02:15.1]} 20. Rf3 {[%clk 0:02:28.5]} 20... Rxf3 {[%clk 0:02:13.4]} 21. Qh4
{[%clk 0:02:29]} 21... Rf7 {[%clk 0:01:49.6]} 22. Qf6 {[%clk 0:02:27]} 22...
Rxf6 {[%clk 0:01:47.9]} 23. Bg5 {[%clk 0:02:25.3]} 23... Qg2# {[%clk 0:01:46.1]}
0-1

[Event "*** Titled Tuesday Blitz"]
[Site "Chess.com"]
[Date "2020.04.28"]
[Round "9"]
[White "floplover"]
[Black "Jaka_Brilej"]
[Result "1-0"]
[WhiteElo "2255"]
[BlackElo "2361"]
[TimeControl "180+1"]
[EndTime "11:41:53 PDT"]
[Termination "floplover won by checkmate"]

1. d4 {[%clk 0:03:00.9]} 1... f5 {[%clk 0:02:59.1]} 2. c4 {[%clk 0:03:00.6]}
2... Nf6 {[%clk 0:02:53]} 3. Nc3 {[%clk 0:03:01.2]} 3... g6 {[%clk 0:02:52.5]}
4. h4 {[%clk 0:03:00.5]} 4... Bg7 {[%clk 0:02:49.2]} 5. h5 {[%clk 0:03:00.4]}
5... Nxh5 {[%clk 0:02:49.3]} 6. e4 {[%clk 0:03:00.7]} 6... fxe4 {[%clk
0:02:32.9]} 7. Rxh5 {[%clk 0:03:00.5]} 7... gxh5 {[%clk 0:02:33.8]} 8. Qxh5+
{[%clk 0:03:00.7]} 8... Kf8 {[%clk 0:02:34.4]} 9. Bh6 {[%clk 0:02:58.1]} 9...
Rg8 {[%clk 0:02:20.5]} 10. Qf5+ {[%clk 0:02:39.7]} 10... Ke8 {[%clk 0:02:19.9]}
11. Qxh7 {[%clk 0:02:38.8]} 11... Kf8 {[%clk 0:02:19.9]} 12. Qf5+ {[%clk
0:02:14.3]} 12... Ke8 {[%clk 0:02:18.8]} 13. Be2 {[%clk 0:02:10.4]} 13... e6
{[%clk 0:01:48.6]} 14. Bh5+ {[%clk 0:02:03.5]} 14... Ke7 {[%clk 0:01:48.5]} 15.
Bg5+ {[%clk 0:02:01.1]} 15... Kd6 {[%clk 0:01:47.8]} 16. Qc5# {[%clk 0:01:59.8]}
1-0

[Event "*** Titled Tuesday Blitz"]
[Site "Chess.com"]
[Date "2020.04.28"]
[Round "9"]
[White "Moon_stone123"]
[Black "manmanlai1"]
[Result "1-0"]
[WhiteElo "2515"]
[BlackElo "2316"]
[TimeControl "180+1"]
[EndTime "11:42:08 PDT"]
[Termination "Moon_stone123 won by resignation"]

1. e4 {[%clk 0:03:00.9]} 1... c5 {[%clk 0:02:59.7]} 2. Nf3 {[%clk 0:03:00.5]}
2... e6 {[%clk 0:03:00.2]} 3. d4 {[%clk 0:03:00.6]} 3... cxd4 {[%clk 0:03:01.1]}
4. Nxd4 {[%clk 0:02:59.7]} 4... Nc6 {[%clk 0:03:01.7]} 5. Nc3 {[%clk 0:02:58.3]}
5... Qc7 {[%clk 0:03:01.4]} 6. Be3 {[%clk 0:02:55.2]} 6... Nf6 {[%clk 0:03:01]}
7. Be2 {[%clk 0:02:52.6]} 7... a6 {[%clk 0:02:52.9]} 8. O-O {[%clk 0:02:51]}
8... Be7 {[%clk 0:02:53.1]} 9. f4 {[%clk 0:02:49.1]} 9... d6 {[%clk 0:02:47.1]}
10. Qe1 {[%clk 0:02:48.7]} 10... Bd7 {[%clk 0:02:42.4]} 11. Qg3 {[%clk
0:02:45.2]} 11... O-O {[%clk 0:02:40.2]} 12. Rad1 {[%clk 0:02:42.6]} 12... Rfe8
{[%clk 0:02:38.1]} 13. Kh1 {[%clk 0:02:37.5]} 13... b5 {[%clk 0:02:34.9]} 14. e5
{[%clk 0:02:06.6]} 14... dxe5 {[%clk 0:02:16.4]} 15. fxe5 {[%clk 0:02:07.5]}
15... Qxe5 {[%clk 0:02:12.1]} 16. Nxc6 {[%clk 0:02:07.5]} 16... Qxg3 {[%clk
0:02:11.9]} 17. Nxe7+ {[%clk 0:02:07.5]} 17... Rxe7 {[%clk 0:02:12.8]} 18. hxg3
{[%clk 0:02:07.7]} 18... Bc6 {[%clk 0:02:13.2]} 19. Bg5 {[%clk 0:02:06.7]} 19...
b4 {[%clk 0:02:12.3]} 20. Nb1 {[%clk 0:01:59.8]} 20... a5 {[%clk 0:02:09.2]} 21.
Bxf6 {[%clk 0:01:59]} 21... gxf6 {[%clk 0:02:09.8]} 22. Rxf6 {[%clk 0:01:56.2]}
22... Bd5 {[%clk 0:02:08.5]} 23. b3 {[%clk 0:01:55.8]} 23... Rc8 {[%clk
0:02:08.1]} 24. Bd3 {[%clk 0:01:53.6]} 1-0

[Event "*** Titled Tuesday Blitz"]
[Site "Chess.com"]
[Date "2020.04.28"]
[Round "9"]
[White "Ana_Berke"]
[Black "czasnaszachy"]
[Result "1-0"]
[WhiteElo "2123"]
[BlackElo "2270"]
[TimeControl "180+1"]
[EndTime "11:42:42 PDT"]
[Termination "Ana_Berke won by resignation"]

1. e4 {[%clk 0:03:00]} 1... c5 {[%clk 0:02:58.3]} 2. Nf3 {[%clk 0:02:59.4]} 2...
e6 {[%clk 0:02:56.8]} 3. c4 {[%clk 0:02:57.9]} 3... Nc6 {[%clk 0:02:56.1]} 4.
Nc3 {[%clk 0:02:58.4]} 4... a6 {[%clk 0:02:52.9]} 5. d4 {[%clk 0:02:58.5]} 5...
cxd4 {[%clk 0:02:52.8]} 6. Nxd4 {[%clk 0:02:58.6]} 6... Qc7 {[%clk 0:02:52.1]}
7. Be2 {[%clk 0:02:56]} 7... Nf6 {[%clk 0:02:51.6]} 8. O-O {[%clk 0:02:55.3]}
8... Be7 {[%clk 0:02:50.3]} 9. Be3 {[%clk 0:02:49.5]} 9... O-O {[%clk
0:02:49.5]} 10. Rc1 {[%clk 0:02:49.5]} 10... Nxd4 {[%clk 0:02:44.1]} 11. Bxd4
{[%clk 0:02:48.1]} 11... d6 {[%clk 0:02:39.2]} 12. f3 {[%clk 0:02:44.2]} 12...
b6 {[%clk 0:02:33.6]} 13. Qd2 {[%clk 0:02:44.1]} 13... Bb7 {[%clk 0:02:30.9]}
14. Kh1 {[%clk 0:02:44]} 14... Rfd8 {[%clk 0:02:27.5]} 15. Rfd1 {[%clk
0:02:41.6]} 15... d5 {[%clk 0:02:17.8]} 16. cxd5 {[%clk 0:02:41.3]} 16... exd5
{[%clk 0:02:17.8]} 17. Nxd5 {[%clk 0:02:41.5]} 17... Qd7 {[%clk 0:01:48.7]} 18.
Bxf6 {[%clk 0:02:39.3]} 18... Bxd5 {[%clk 0:01:39.1]} 19. Bxe7 {[%clk
0:02:37.7]} 19... Qxe7 {[%clk 0:01:31.6]} 20. exd5 {[%clk 0:02:36.3]} 20... Re8
{[%clk 0:01:28.4]} 21. d6 {[%clk 0:02:18.1]} 21... Qxe2 {[%clk 0:01:25.6]} 22.
Qxe2 {[%clk 0:02:18.4]} 22... Rxe2 {[%clk 0:01:25.2]} 23. d7 {[%clk 0:02:18.9]}
23... Rd8 {[%clk 0:01:17.1]} 24. Rc8 {[%clk 0:02:16.6]} 24... Ree8 {[%clk
0:01:11.4]} 25. dxe8=Q+ {[%clk 0:02:14.6]} 1-0

[Event "*** Titled Tuesday Blitz"]
[Site "Chess.com"]
[Date "2020.04.28"]
[Round "9"]
[White "Yaacovn"]
[Black "ChessTraining77"]
[Result "1-0"]
[WhiteElo "2742"]
[BlackElo "2546"]
[TimeControl "180+1"]
[EndTime "11:42:46 PDT"]
[Termination "Yaacovn won by resignation"]

1. d4 {[%clk 0:02:49.4]} 1... Nf6 {[%clk 0:02:56.9]} 2. Nf3 {[%clk 0:02:49.8]}
2... d5 {[%clk 0:02:54.5]} 3. c4 {[%clk 0:02:49.7]} 3... e6 {[%clk 0:02:53.9]}
4. Bg5 {[%clk 0:02:48.7]} 4... Be7 {[%clk 0:02:51.7]} 5. e3 {[%clk 0:02:48.5]}
5... Nbd7 {[%clk 0:02:51.3]} 6. Nc3 {[%clk 0:02:48.1]} 6... a6 {[%clk
0:02:46.4]} 7. Rc1 {[%clk 0:02:47.1]} 7... dxc4 {[%clk 0:02:45.2]} 8. Bxc4
{[%clk 0:02:43.8]} 8... b5 {[%clk 0:02:45.4]} 9. Be2 {[%clk 0:02:44.1]} 9... Bb7
{[%clk 0:02:45.3]} 10. O-O {[%clk 0:02:44.5]} 10... O-O {[%clk 0:02:44.4]} 11.
Ne5 {[%clk 0:02:44.9]} 11... c5 {[%clk 0:02:43.1]} 12. Bf3 {[%clk 0:02:43]}
12... Bxf3 {[%clk 0:02:40.1]} 13. Qxf3 {[%clk 0:02:43.9]} 13... Nxe5 {[%clk
0:01:28.3]} 14. dxe5 {[%clk 0:02:42.6]} 14... Nd7 {[%clk 0:01:28.3]} 15. Bf4
{[%clk 0:02:37.6]} 15... c4 {[%clk 0:01:25.8]} 16. Rfd1 {[%clk 0:02:35.8]} 16...
Qc7 {[%clk 0:01:25.5]} 17. Qg3 {[%clk 0:02:28.4]} 17... Rfd8 {[%clk 0:01:24.2]}
18. h4 {[%clk 0:02:27]} 18... Kh8 {[%clk 0:01:19.5]} 19. Ne4 {[%clk 0:02:26.4]}
19... Nc5 {[%clk 0:01:18.4]} 20. Nd6 {[%clk 0:02:24.8]} 20... Bxd6 {[%clk
0:01:17.8]} 21. exd6 {[%clk 0:02:24.7]} 21... Qc6 {[%clk 0:01:18]} 22. h5 {[%clk
0:02:19.8]} 22... h6 {[%clk 0:01:17]} 23. f3 {[%clk 0:02:19.4]} 23... f6 {[%clk
0:01:15.6]} 24. Qg6 {[%clk 0:02:14]} 24... Ra7 {[%clk 0:01:13.4]} 25. Bxh6
{[%clk 0:02:13.5]} 25... gxh6 {[%clk 0:01:12.6]} 26. Qxf6+ {[%clk 0:02:13.5]}
26... Rg7 {[%clk 0:01:11]} 27. Qxd8+ {[%clk 0:02:12.1]} 1-0

[Event "*** Titled Tuesday Blitz"]
[Site "Chess.com"]
[Date "2020.04.28"]
[Round "9"]
[White "indfraeng"]
[Black "BillCoe"]
[Result "1-0"]
[WhiteElo "2252"]
[BlackElo "2058"]
[TimeControl "180+1"]
[EndTime "11:42:51 PDT"]
[Termination "indfraeng won by checkmate"]

1. d4 {[%clk 0:03:00.9]} 1... f5 {[%clk 0:02:59.3]} 2. Nc3 {[%clk 0:03:00]} 2...
Nf6 {[%clk 0:02:59.1]} 3. Bg5 {[%clk 0:03:00.5]} 3... e6 {[%clk 0:02:57.3]} 4.
e4 {[%clk 0:03:00.8]} 4... fxe4 {[%clk 0:02:56.4]} 5. Nxe4 {[%clk 0:03:01.7]}
5... Be7 {[%clk 0:02:56.5]} 6. Bxf6 {[%clk 0:03:02.2]} 6... Bxf6 {[%clk
0:02:56.3]} 7. Nf3 {[%clk 0:03:03.1]} 7... O-O {[%clk 0:02:54.9]} 8. Bd3 {[%clk
0:03:03.2]} 8... Nc6 {[%clk 0:02:51.4]} 9. c3 {[%clk 0:03:03]} 9... a5 {[%clk
0:02:46]} 10. a4 {[%clk 0:02:56.1]} 10... d6 {[%clk 0:02:28]} 11. O-O {[%clk
0:02:53.6]} 11... e5 {[%clk 0:02:26.8]} 12. Nxf6+ {[%clk 0:02:28.5]} 12... Qxf6
{[%clk 0:02:23.4]} 13. dxe5 {[%clk 0:02:28.7]} 13... Nxe5 {[%clk 0:02:22.8]} 14.
Nxe5 {[%clk 0:02:28.6]} 14... Qxe5 {[%clk 0:02:20.8]} 15. Qb3+ {[%clk
0:02:28.7]} 15... Kh8 {[%clk 0:02:16.7]} 16. Rae1 {[%clk 0:02:28.7]} 16... Qf6
{[%clk 0:02:14.9]} 17. f4 {[%clk 0:02:15.2]} 17... c6 {[%clk 0:02:04.5]} 18. f5
{[%clk 0:02:14.4]} 18... d5 {[%clk 0:02:04]} 19. Qa3 {[%clk 0:02:02.5]} 19...
Bd7 {[%clk 0:01:52.2]} 20. Qc5 {[%clk 0:01:59.6]} 20... Qg5 {[%clk 0:01:31.8]}
21. Re5 {[%clk 0:01:50.5]} 21... Rae8 {[%clk 0:01:28.3]} 22. Rfe1 {[%clk
0:01:41.6]} 22... Rxe5 {[%clk 0:01:25.5]} 23. Qxf8# {[%clk 0:01:41.3]} 1-0

[Event "*** Titled Tuesday Blitz"]
[Site "Chess.com"]
[Date "2020.04.28"]
[Round "9"]
[White "louis198"]
[Black "Danesz22"]
[Result "0-1"]
[WhiteElo "2455"]
[BlackElo "2313"]
[TimeControl "180+1"]
[EndTime "11:43:01 PDT"]
[Termination "Danesz22 won by resignation"]

1. d4 {[%clk 0:03:00.9]} 1... d5 {[%clk 0:02:59.1]} 2. Bf4 {[%clk 0:02:58.5]}
2... Nf6 {[%clk 0:02:57.8]} 3. Nf3 {[%clk 0:02:54.9]} 3... c5 {[%clk 0:02:57.9]}
4. e3 {[%clk 0:02:54.6]} 4... Nc6 {[%clk 0:02:58]} 5. c3 {[%clk 0:02:53.8]} 5...
Qb6 {[%clk 0:02:58.2]} 6. Qc1 {[%clk 0:02:45.1]} 6... Bg4 {[%clk 0:02:55.7]} 7.
Be2 {[%clk 0:02:44.5]} 7... e6 {[%clk 0:02:55.6]} 8. O-O {[%clk 0:02:42.6]} 8...
Rc8 {[%clk 0:02:55.4]} 9. Nbd2 {[%clk 0:02:39.9]} 9... Nh5 {[%clk 0:02:50.3]}
10. Bg5 {[%clk 0:02:35.7]} 10... h6 {[%clk 0:02:49.4]} 11. Bh4 {[%clk
0:02:35.9]} 11... g5 {[%clk 0:02:49.3]} 12. Bg3 {[%clk 0:02:36.2]} 12... Nxg3
{[%clk 0:02:49.2]} 13. fxg3 {[%clk 0:02:27.7]} 13... Bg7 {[%clk 0:02:46.9]} 14.
h3 {[%clk 0:02:22.9]} 14... Bh5 {[%clk 0:02:42.6]} 15. g4 {[%clk 0:02:22.8]}
15... Bg6 {[%clk 0:02:42.8]} 16. Kh1 {[%clk 0:02:23]} 16... cxd4 {[%clk
0:02:40.3]} 17. cxd4 {[%clk 0:02:18.2]} 17... O-O {[%clk 0:02:36.8]} 18. Qe1
{[%clk 0:02:09.7]} 18... Nb4 {[%clk 0:02:35]} 19. Qg3 {[%clk 0:02:06.6]} 19...
Nc2 {[%clk 0:02:34.9]} 20. Rac1 {[%clk 0:01:58]} 20... Nxe3 {[%clk 0:02:34.2]}
21. Rxc8 {[%clk 0:01:57.4]} 21... Rxc8 {[%clk 0:02:34.4]} 22. Re1 {[%clk
0:01:57]} 22... Nc2 {[%clk 0:02:26.9]} 23. Rf1 {[%clk 0:01:56.6]} 23... Nxd4
{[%clk 0:02:25.5]} 24. Nxd4 {[%clk 0:01:56.2]} 24... Qxd4 {[%clk 0:02:26.2]} 25.
Nb3 {[%clk 0:01:54.4]} 25... Qxb2 {[%clk 0:02:24.3]} 26. Bf3 {[%clk 0:01:54.5]}
26... Qxa2 {[%clk 0:02:15.5]} 27. Nc1 {[%clk 0:01:52.3]} 27... Qa3 {[%clk
0:02:09.9]} 28. Ne2 {[%clk 0:01:52.2]} 28... a5 {[%clk 0:02:06.5]} 29. h4 {[%clk
0:01:49.8]} 29... a4 {[%clk 0:02:03.1]} 30. h5 {[%clk 0:01:47.6]} 30... Be4
{[%clk 0:01:59.9]} 31. Bxe4 {[%clk 0:01:46.8]} 31... Qxg3 {[%clk 0:01:59.2]} 32.
Nxg3 {[%clk 0:01:47.7]} 32... dxe4 {[%clk 0:01:59]} 33. Nxe4 {[%clk 0:01:48.6]}
33... a3 {[%clk 0:01:58.8]} 34. Rf2 {[%clk 0:01:49.1]} 34... Rc1+ {[%clk
0:01:53.2]} 35. Kh2 {[%clk 0:01:48.5]} 35... Bb2 {[%clk 0:01:53.7]} 0-1

[Event "*** Titled Tuesday Blitz"]
[Site "Chess.com"]
[Date "2020.04.28"]
[Round "9"]
[White "Petrosyan_Tigran"]
[Black "Baby_Shak"]
[Result "0-1"]
[WhiteElo "2535"]
[BlackElo "2393"]
[TimeControl "180+1"]
[EndTime "11:43:03 PDT"]
[Termination "Baby_Shak won by resignation"]

1. Nf3 {[%clk 0:03:00.9]} 1... d5 {[%clk 0:03:00.1]} 2. d4 {[%clk 0:03:00.8]}
2... Nc6 {[%clk 0:02:59.9]} 3. Bf4 {[%clk 0:02:57.3]} 3... Bg4 {[%clk
0:02:59.3]} 4. e3 {[%clk 0:02:56.8]} 4... e6 {[%clk 0:02:59]} 5. h3 {[%clk
0:02:56.2]} 5... Bxf3 {[%clk 0:02:58.7]} 6. Qxf3 {[%clk 0:02:55.4]} 6... Bd6
{[%clk 0:02:59.6]} 7. c3 {[%clk 0:02:53.5]} 7... Nf6 {[%clk 0:02:59.2]} 8. Bd3
{[%clk 0:02:53]} 8... e5 {[%clk 0:02:57.2]} 9. dxe5 {[%clk 0:02:49.1]} 9... Nxe5
{[%clk 0:02:58.1]} 10. Bxe5 {[%clk 0:02:48.4]} 10... Bxe5 {[%clk 0:02:58.4]} 11.
Nd2 {[%clk 0:02:48.9]} 11... Qe7 {[%clk 0:02:57]} 12. O-O {[%clk 0:02:44.2]}
12... O-O-O {[%clk 0:02:55.6]} 13. c4 {[%clk 0:02:39.2]} 13... Kb8 {[%clk
0:02:50.7]} 14. Rfd1 {[%clk 0:02:26.1]} 14... g5 {[%clk 0:02:40.8]} 15. cxd5
{[%clk 0:02:25.5]} 15... Nxd5 {[%clk 0:02:31.5]} 16. Nc4 {[%clk 0:02:24.2]}
16... Nb6 {[%clk 0:02:09.7]} 17. Rac1 {[%clk 0:02:12.2]} 17... Nxc4 {[%clk
0:02:00.2]} 18. Rxc4 {[%clk 0:02:13.1]} 18... Bd6 {[%clk 0:01:58]} 19. Re4
{[%clk 0:02:06.9]} 19... Qd7 {[%clk 0:01:56.9]} 20. Qf6 {[%clk 0:01:34.4]} 20...
h5 {[%clk 0:01:47.1]} 21. Be2 {[%clk 0:01:32.5]} 21... Qc6 {[%clk 0:01:37.7]}
22. Bf3 {[%clk 0:01:25.7]} 22... Bh2+ {[%clk 0:01:36.4]} 23. Kxh2 {[%clk
0:01:24.4]} 23... Qxf6 {[%clk 0:01:37.3]} 0-1

[Event "*** Titled Tuesday Blitz"]
[Site "Chess.com"]
[Date "2020.04.28"]
[Round "9"]
[White "Tashik"]
[Black "davigator"]
[Result "1-0"]
[WhiteElo "2535"]
[BlackElo "2387"]
[TimeControl "180+1"]
[EndTime "11:43:11 PDT"]
[Termination "Tashik won by resignation"]

1. c4 {[%clk 0:03:00.9]} 1... e5 {[%clk 0:02:59.2]} 2. Nc3 {[%clk 0:03:00.5]}
2... Bb4 {[%clk 0:02:57.8]} 3. Nd5 {[%clk 0:02:59.4]} 3... Bc5 {[%clk
0:02:57.5]} 4. Nf3 {[%clk 0:02:58.6]} 4... d6 {[%clk 0:02:57]} 5. d4 {[%clk
0:02:56.8]} 5... exd4 {[%clk 0:02:54.3]} 6. Nxd4 {[%clk 0:02:56.9]} 6... c6
{[%clk 0:02:55.1]} 7. Nc3 {[%clk 0:02:56.5]} 7... Bb4 {[%clk 0:02:54.7]} 8. Bd2
{[%clk 0:02:49.4]} 8... Nf6 {[%clk 0:02:53.3]} 9. g3 {[%clk 0:02:41.8]} 9... O-O
{[%clk 0:02:52.7]} 10. Bg2 {[%clk 0:02:42.4]} 10... a5 {[%clk 0:02:52.4]} 11.
O-O {[%clk 0:02:41.9]} 11... Bg4 {[%clk 0:02:51.4]} 12. h3 {[%clk 0:02:32.4]}
12... Bd7 {[%clk 0:02:38.3]} 13. a3 {[%clk 0:02:25.3]} 13... Bc5 {[%clk
0:02:37.5]} 14. Nb3 {[%clk 0:02:25.5]} 14... Ba7 {[%clk 0:02:36.5]} 15. Bf4
{[%clk 0:02:25.2]} 15... d5 {[%clk 0:02:35.1]} 16. cxd5 {[%clk 0:02:22.2]} 16...
cxd5 {[%clk 0:02:26.7]} 17. Nxd5 {[%clk 0:02:22]} 17... Nxd5 {[%clk 0:02:25.8]}
18. Qxd5 {[%clk 0:02:02.4]} 18... Nc6 {[%clk 0:02:24.9]} 19. Nc5 {[%clk
0:01:52.4]} 19... Bc8 {[%clk 0:02:18.5]} 20. Qxd8 {[%clk 0:01:38.9]} 20... Rxd8
{[%clk 0:02:18]} 21. Rac1 {[%clk 0:01:39.4]} 21... Nd4 {[%clk 0:02:12.6]} 22.
Rfe1 {[%clk 0:01:39.3]} 22... Bf5 {[%clk 0:02:04.4]} 23. Nxb7 {[%clk 0:01:34]}
23... Nc2 {[%clk 0:01:47.1]} 24. Nxd8 {[%clk 0:01:29.1]} 24... Rxd8 {[%clk
0:01:46.9]} 25. Red1 {[%clk 0:01:28.5]} 25... Re8 {[%clk 0:01:46.2]} 26. e4
{[%clk 0:01:26.4]} 1-0